bitfinex/quotes_BTCUSD_20220207
["timestamp","ask_amount","ask_price","bid_price","bid_amount"]
[1644202342624,0.12959999,42535.0,42531.0,0.058769]
[1644202342821,0.12959999,42535.0,42532.0,0.0432]
[1644202343922,0.14559999,42535.0,42532.0,0.0432]
[1644202345122,0.12959999,42535.0,42532.0,0.0432]
[1644202345523,0.12959999,42535.0,42532.0,0.0932]
[1644202345723,0.12959999,42535.0,42532.0,0.0432]
[1644202345922,0.14659999,42535.0,42532.0,0.0432]
[1644202346159,0.0001105,42534.0,42532.0,0.0432]
[1644202348062,0.0161105,42534.0,42532.0,0.0432]
[1644202348663,0.0001105,42534.0,42532.0,0.0432]
[1644202349066,0.0001105,42534.0,42533.0,0.04894435]
[1644202349666,0.0001105,42534.0,42529.0,0.37743553]
[1644202349667,0.0001105,42534.0,42527.0,0.39715697]
[1644202349943,0.00105565,42531.0,42527.0,0.05]
[1644202350539,0.25910898,42531.0,42527.0,0.06929591]
[1644202351239,0.25910898,42531.0,42527.0,0.05]
[1644202352039,0.27110898,42531.0,42527.0,0.05]
[1644202352442,0.00093752,42529.0,42527.0,0.05]
[1644202354064,0.01293752,42529.0,42527.0,0.05]
[1644202354663,0.00093752,42529.0,42527.0,0.05]
[1644202355966,0.01293752,42529.0,42527.0,0.05]
[1644202356566,0.00093752,42529.0,42527.0,0.05]
[1644202357909,0.00093752,42529.0,42526.0,0.00061796]
[1644202357910,0.329022,42528.0,42526.0,0.00061796]
[1644202358111,0.19974386,42527.0,42526.0,0.00061796]
[1644202358313,0.90584999,42527.0,42526.0,0.00061796]
[1644202358512,0.95584999,42527.0,42526.0,0.00061796]
[1644202358710,0.329022,42526.0,42524.0,0.00057726]
[1644202358911,0.32524591,42525.0,42524.0,0.00057726]
[1644202359112,0.65426791,42525.0,42524.0,0.00057726]
[1644202359511,0.71307991,42525.0,42524.0,0.00057726]
[1644202359711,0.65426791,42525.0,42518.0,0.00230938]
[1644202359911,0.24610372,42519.0,42513.0,0.00027758]
[1644202360111,0.24610372,42519.0,42512.0,0.05]
[1644202360112,0.2451662,42519.0,42516.0,0.00230947]
[1644202360315,0.00093752,42517.0,42516.0,0.00230947]
[1644202361158,0.00093752,42517.0,42514.0,0.00057737]
[1644202361960,0.01293752,42517.0,42514.0,0.00057737]
[1644202362258,0.01293752,42517.0,42513.0,0.00027758]
[1644202362458,0.012,42517.0,42513.0,0.00057129]
[1644202362657,0.00093752,42514.0,42513.0,0.00084887]
[1644202362860,0.00093752,42514.0,42513.0,0.00057129]
[1644202363458,0.00093752,42514.0,42512.0,0.05]
[1644202364059,0.01193752,42514.0,42512.0,0.05]
[1644202364666,0.01193752,42514.0,42511.0,0.00027758]
[1644202364667,0.329022,42513.0,42511.0,0.00027758]
[1644202364913,0.329022,42511.0,42509.0,0.00027758]
[1644202365112,0.00093752,42510.0,42508.0,0.02002693]
[1644202365314,0.00093752,42510.0,42502.0,0.00027758]
[1644202365514,0.00093752,42503.0,42501.0,0.00027758]
[1644202365713,0.00093752,42503.0,42502.0,0.24632861]
[1644202365913,0.38449607,42516.0,42502.0,0.24632861]
[1644202366114,0.008,42503.0,42502.0,0.24632861]
[1644202366312,0.008,42503.0,42502.0,0.29566817]
[1644202366313,0.00720001,42503.0,42502.0,0.29566817]
[1644202366511,0.00720001,42503.0,42502.0,0.29539109]
[1644202366712,0.00246709,42514.0,42502.0,0.29539109]
[1644202366914,0.00246709,42514.0,42509.0,0.058805]
[1644202367113,0.00246709,42514.0,42510.0,0.05]
[1644202367516,0.00246709,42514.0,42510.0,0.05027708]
[1644202367713,0.00152957,42514.0,42510.0,0.10027708]
[1644202367913,0.00093752,42511.0,42510.0,0.10027708]
[1644202368116,0.00093752,42511.0,42510.0,0.15]
[1644202368313,0.00093752,42511.0,42510.0,0.05]
[1644202369762,0.00246709,42514.0,42510.0,0.05]
[1644202369963,0.00093752,42511.0,42510.0,0.05]
[1644202370164,0.01293752,42511.0,42510.0,0.05]
[1644202370365,0.01293752,42511.0,42509.0,0.00027708]
[1644202370564,0.01293752,42511.0,42508.0,0.13724342]
[1644202370770,0.00093752,42511.0,42508.0,0.13724342]
[1644202371366,0.00093752,42511.0,42508.0,0.11818074]
[1644202371965,0.00093752,42511.0,42508.0,0.11761]
[1644202372166,0.01193752,42511.0,42507.0,0.00084783]
[1644202372432,0.01193752,42511.0,42507.0,0.00057075]
[1644202372433,0.00093752,42508.0,42507.0,0.00057075]
[1644202373034,0.00152629,42512.0,42507.0,0.00057075]
[1644202373035,0.00152629,42512.0,42507.0,0.04906248]
[1644202373339,0.00152629,42512.0,42511.0,0.04906248]
[1644202373340,0.00127229,42512.0,42511.0,0.04906248]
[1644202373532,0.00127229,42512.0,42511.0,0.42013067]
[1644202374131,0.05827229,42512.0,42511.0,0.37506819]
[1644202374333,0.05827229,42512.0,42511.0,0.42413067]
[1644202374537,0.05827229,42512.0,42511.0,0.52413067]
[1644202374732,0.00127229,42512.0,42511.0,0.52013067]
[1644202374939,0.00127229,42512.0,42511.0,0.47106819]
[1644202375131,0.00127229,42512.0,42511.0,0.52013067]
[1644202375332,0.00127229,42512.0,42511.0,0.47106819]
[1644202375532,0.00127229,42512.0,42511.0,0.52013067]
[1644202376162,0.06327229,42512.0,42511.0,0.47306819]
[1644202376363,0.06327229,42512.0,42511.0,0.52213067]
[1644202376563,0.06327229,42512.0,42511.0,0.47306819]
[1644202376764,0.00180615,42512.0,42511.0,0.47106819]
[1644202376963,0.00180615,42512.0,42511.0,0.1]
[1644202377162,0.00180615,42512.0,42511.0,0.4215971]
[1644202378064,0.09380615,42512.0,42511.0,0.4215971]
[1644202378467,0.09474367,42512.0,42510.0,1.00027708]
[1644202378665,0.00274367,42512.0,42510.0,1.0]
[1644202378866,0.15175898,42513.0,42510.0,1.0]
[1644202379068,2.62047824,42517.0,42510.0,1.00027708]
[1644202379266,0.329022,42516.0,42510.0,1.0]
[1644202379466,0.329022,42516.0,42511.0,0.00027708]
[1644202379665,0.329022,42516.0,42510.0,1.00027708]
[1644202379915,2.62047824,42517.0,42510.0,1.00027708]
[1644202380116,0.25932617,42515.0,42510.0,1.00027708]
[1644202380515,0.25932617,42515.0,42511.0,0.00057066]
[1644202380718,9.579e-05,42512.0,42511.0,0.00084774]
[1644202380919,9.579e-05,42512.0,42511.0,0.00057066]
[1644202381518,9.579e-05,42512.0,42510.0,0.97527708]
[1644202381718,9.579e-05,42512.0,42510.0,0.975]
[1644202381920,0.00190194,42512.0,42510.0,0.975]
[1644202382119,0.02590194,42512.0,42510.0,0.975]
[1644202382722,0.02590194,42512.0,42511.0,0.05]
[1644202382922,0.02590194,42512.0,42511.0,0.38099305]
[1644202383321,0.00190194,42512.0,42511.0,0.48099305]
[1644202384164,0.05790194,42512.0,42511.0,0.48499305]
[1644202384762,0.00190194,42512.0,42511.0,0.48099305]
[1644202385363,0.00190194,42512.0,42511.0,0.1971]
[1644202385563,0.00190194,42512.0,42510.0,0.97527708]
[1644202385763,0.00190194,42512.0,42510.0,0.975]
[1644202386161,0.02190194,42512.0,42510.0,0.975]
[1644202386762,9.579e-05,42512.0,42510.0,0.975]
[1644202387063,9.579e-05,42512.0,42510.0,1.03380706]
[1644202387318,9.579e-05,42512.0,42511.0,0.05]
[1644202387514,9.579e-05,42512.0,42511.0,0.30755517]
[1644202387914,9.579e-05,42512.0,42511.0,0.05]
[1644202388115,0.02109579,42512.0,42511.0,0.05]
[1644202388314,0.02109579,42512.0,42511.0,0.108803]
[1644202388516,0.02109579,42512.0,42511.0,0.093803]
[1644202388715,9.579e-05,42512.0,42511.0,0.36717378]
[1644202388920,9.579e-05,42512.0,42511.0,0.46717378]
[1644202389117,9.579e-05,42512.0,42511.0,0.51717378]
[1644202389516,9.579e-05,42512.0,42511.0,0.77135704]
[1644202390115,0.06009579,42512.0,42511.0,0.77535704]
[1644202390815,0.06009579,42512.0,42511.0,0.77135704]
[1644202390816,9.579e-05,42512.0,42511.0,0.77135704]
[1644202391564,9.579e-05,42512.0,42511.0,0.81845704]
[1644202392162,9.579e-05,42512.0,42511.0,0.79445704]
[1644202392163,0.05209579,42512.0,42511.0,0.79445704]
[1644202392762,9.579e-05,42512.0,42511.0,0.79345704]
[1644202394168,9.579e-05,42512.0,42511.0,0.80245704]
[1644202394815,9.579e-05,42512.0,42511.0,0.79345704]
[1644202396109,0.00509579,42520.0,42513.0,0.05878804]
[1644202396310,0.00509579,42520.0,42519.0,0.32336407]
[1644202396509,0.00509579,42520.0,42519.0,0.37046407]
[1644202398112,0.06609579,42520.0,42519.0,0.37146407]
[1644202398311,0.06609579,42520.0,42519.0,0.156888]
[1644202398763,0.00509579,42520.0,42519.0,0.155888]
[1644202400165,0.10809579,42520.0,42519.0,0.155888]
[1644202400765,0.00509579,42520.0,42519.0,0.155888]
[1644202401872,9.579e-05,42520.0,42519.0,0.155888]
[1644202402319,0.10509579,42520.0,42519.0,0.155888]
[1644202402522,0.10509579,42520.0,42519.0,0.058788]
[1644202402722,0.10509579,42520.0,42517.0,0.00055187]
[1644202402922,9.579e-05,42520.0,42517.0,0.00055187]
[1644202403119,9.579e-05,42520.0,42516.0,0.05]
[1644202403319,9.579e-05,42520.0,42516.0,0.00055162]
[1644202403722,0.18999967,42519.0,42516.0,0.00055162]
[1644202403926,0.18999967,42519.0,42511.0,0.00027708]
[1644202403927,0.10110324,42514.0,42511.0,0.00027708]
[1644202404123,0.18999967,42519.0,42511.0,0.05]
[1644202404124,0.34430693,42513.0,42511.0,0.05]
[1644202404322,0.8971,42517.0,42511.0,0.05027708]
[1644202404323,0.36003649,42516.0,42511.0,0.05027708]
[1644202404526,0.36003649,42516.0,42511.0,0.05]
[1644202404829,0.36003649,42516.0,42511.0,0.05027708]
[1644202404830,0.29807867,42515.0,42511.0,0.05027708]
[1644202405022,0.29807867,42515.0,42511.0,0.00027708]
[1644202405023,0.61499703,42514.0,42511.0,0.00027708]
[1644202405222,0.39469332,42513.0,42510.0,0.95]
[1644202406067,0.59456312,42512.0,42510.0,0.15]
[1644202406270,0.32318535,42511.0,42510.0,0.15]
[1644202406469,0.65220735,42511.0,42510.0,0.15]
[1644202406770,0.65220735,42511.0,42510.0,0.1363]
[1644202408269,0.68020735,42511.0,42510.0,0.1363]
[1644202409472,0.65220735,42511.0,42510.0,0.1363]
[1644202409927,0.058827,42514.0,42510.0,0.1863]
[1644202410128,0.079,42511.0,42510.0,0.1863]
[1644202410524,0.079,42511.0,42510.0,0.18691816]
[1644202410927,9.825e-05,42511.0,42510.0,0.24573016]
[1644202411526,9.825e-05,42511.0,42510.0,0.245112]
[1644202412126,0.09009825,42511.0,42510.0,0.245112]
[1644202413325,9.825e-05,42511.0,42510.0,0.245112]
[1644202414163,0.09009825,42511.0,42510.0,0.245112]
[1644202414967,9.825e-05,42511.0,42510.0,0.245112]
[1644202415965,0.19369401,42518.0,42510.0,0.245112]
[1644202416165,0.089,42511.0,42510.0,0.24538908]
[1644202416366,0.089,42511.0,42510.0,0.245112]
[1644202416967,0.19369401,42518.0,42510.0,0.245112]
[1644202417166,0.26259832,42511.0,42510.0,0.13657708]
[1644202417413,0.26259832,42511.0,42510.0,0.1363]
[1644202418314,0.29459832,42511.0,42510.0,0.1363]
[1644202418913,0.26259832,42511.0,42510.0,0.1363]
[1644202419114,0.59162032,42511.0,42510.0,0.1363]
[1644202420314,0.61162032,42511.0,42510.0,0.1363]
[1644202420715,0.61171857,42511.0,42510.0,0.1363]
[1644202420916,0.59171857,42511.0,42510.0,0.1363]
[1644202422165,0.61171857,42511.0,42510.0,0.1363]
[1644202422965,0.59171857,42511.0,42510.0,0.1363]
[1644202424165,0.61571857,42511.0,42510.0,0.1363]
[1644202424916,0.59171857,42511.0,42510.0,0.1363]
[1644202426314,0.61571857,42511.0,42510.0,0.1363]
[1644202427416,0.59171857,42511.0,42510.0,0.1363]
[1644202427818,0.59171857,42511.0,42510.0,0.0863]
[1644202428215,0.61671857,42511.0,42510.0,0.0863]
[1644202429565,0.59171857,42511.0,42510.0,0.0863]
[1644202430068,0.32912025,42511.0,42510.0,0.0863]
[1644202430266,0.35412025,42511.0,42510.0,0.0863]
[1644202430867,0.32912025,42511.0,42510.0,0.0863]
[1644202431066,0.54217391,42511.0,42510.0,0.0863]
[1644202432320,0.56517391,42511.0,42510.0,0.0863]
[1644202432913,0.54217391,42511.0,42510.0,0.0863]
[1644202434314,0.56617391,42511.0,42510.0,0.0863]
[1644202435015,0.54217391,42511.0,42510.0,0.0863]
[1644202436161,0.56617391,42511.0,42510.0,0.0863]
[1644202436765,0.56617391,42511.0,42510.0,0.0813]
[1644202436965,0.88838791,42511.0,42510.0,0.0813]
[1644202437364,0.86438791,42511.0,42510.0,0.0813]
[1644202438165,0.88838791,42511.0,42510.0,0.0813]
[1644202438565,0.67533425,42511.0,42510.0,0.0813]
[1644202439167,0.65133425,42511.0,42510.0,0.0813]
[1644202439565,0.89355893,42511.0,42510.0,0.0813]
[1644202440225,0.91755893,42511.0,42510.0,0.0813]
[1644202441026,0.89355893,42511.0,42510.0,0.0813]
[1644202442228,0.91655893,42511.0,42510.0,0.0813]
[1644202442425,0.67433425,42511.0,42510.0,0.0813]
[1644202442825,0.67433425,42511.0,42510.0,0.1313]
[1644202443028,0.34531225,42511.0,42510.0,0.1813]
[1644202443328,0.34531225,42511.0,42510.0,1.16268155]
[1644202443576,0.32231225,42511.0,42510.0,1.16268155]
[1644202443766,0.32231225,42511.0,42510.0,1.50617038]
[1644202443967,0.32231225,42511.0,42510.0,1.79348033]
[1644202444368,1.225e-05,42511.0,42510.0,1.27065575]
[1644202444969,1.225e-05,42511.0,42510.0,1.26865575]
[1644202445168,0.21370689,42531.0,42510.0,1.26865575]
[1644202445368,0.21370689,42531.0,42527.0,0.058787]
[1644202445570,0.21370689,42531.0,42528.0,0.0471]
[1644202445768,0.329022,42530.0,42528.0,0.0471]
[1644202445970,0.5,42529.0,42523.0,0.1]
[1644202446171,0.78661558,42529.0,42524.0,0.0471]
[1644202446369,0.329022,42528.0,42524.0,0.0471]
[1644202446573,0.31128879,42526.0,42524.0,0.0471]
[1644202446869,0.61591041,42525.0,42523.0,0.05]
[1644202447169,0.20864857,42524.0,42523.0,0.05]
[1644202447416,0.53767057,42524.0,42517.0,0.058799]
[1644202447621,0.329022,42523.0,42515.0,0.05]
[1644202448018,0.329022,42523.0,42514.0,0.00057133]
[1644202448217,0.329022,42523.0,42515.0,0.012]
[1644202448416,0.22592802,42517.0,42515.0,0.012]
[1644202448619,0.30620437,42522.0,42516.0,0.05]
[1644202448821,0.31128879,42526.0,42516.0,0.05]
[1644202448822,0.329022,42524.0,42516.0,0.05]
[1644202449620,0.26156061,42519.0,42516.0,0.05]
[1644202449919,0.26156061,42519.0,42514.0,0.00057131]
[1644202450118,0.26156061,42519.0,42513.0,0.05]
[1644202450318,0.26156061,42519.0,42514.0,0.00057132]
[1644202450519,0.32487519,42525.0,42514.0,0.00057132]
[1644202450720,0.329022,42524.0,42514.0,0.00057132]
[1644202450920,0.329022,42524.0,42516.0,0.05]
[1644202451168,0.329022,42525.0,42516.0,0.05]
[1644202451566,0.19839676,42521.0,42516.0,0.05]
[1644202452867,0.19839676,42521.0,42517.0,0.05]
[1644202453469,0.31128879,42526.0,42517.0,0.05]
[1644202453669,0.329022,42525.0,42517.0,0.05]
[1644202454069,0.329022,42525.0,42514.0,0.10937332]
[1644202454270,0.36128879,42526.0,42517.0,0.05]
[1644202454471,0.19260862,42521.0,42514.0,0.05937332]
[1644202454671,0.19260862,42521.0,42516.0,0.05]
[1644202455122,0.36128879,42526.0,42517.0,0.0588]
[1644202455324,0.0004805,42527.0,42516.0,0.05]
[1644202455325,0.0004805,42527.0,42525.0,0.05]
[1644202455526,0.00038524,42527.0,42526.0,0.0471]
[1644202455721,0.00038524,42527.0,42526.0,0.0971]
[1644202456222,0.25675279,42529.0,42526.0,0.0921]
[1644202456425,0.2571381,42529.0,42528.0,0.05]
[1644202456622,0.2571381,42529.0,42528.0,0.0971]
[1644202456822,0.00038531,42529.0,42528.0,0.0971]
[1644202457221,0.32878144,42534.0,42528.0,0.0971]
[1644202457622,0.27916675,42534.0,42528.0,0.05]
[1644202457822,0.20322117,42532.0,42528.0,0.05]
[1644202458022,0.20322117,42532.0,42529.0,0.0471]
[1644202458869,0.1165,42537.0,42529.0,0.0471]
[1644202459077,0.9847,42539.0,42534.0,0.05]
[1644202459274,0.3838,42541.0,42535.0,0.0471]
[1644202459670,0.003,42541.0,42535.0,0.0471]
[1644202459971,0.2525211,42539.0,42535.0,0.0471]
[1644202460971,0.34058796,42540.0,42535.0,0.0471]
[1644202461172,0.00011557,42539.0,42535.0,0.0471]
[1644202461772,0.00011557,42539.0,42528.0,0.35512422]
[1644202461973,0.2375056,42534.0,42529.0,0.0471]
[1644202463018,0.00038435,42536.0,42529.0,0.0471]
[1644202463220,0.39058796,42540.0,42529.0,0.0471]
[1644202463619,0.00038435,42534.0,42529.0,0.0471]
[1644202463821,0.00038435,42534.0,42533.0,0.05]
[1644202464024,0.00038435,42534.0,42533.0,0.41963086]
[1644202464422,0.003,42541.0,42534.0,0.058761]
[1644202464625,0.003,42541.0,42540.0,0.27331084]
[1644202464826,0.003,42541.0,42540.0,0.32041084]
[1644202465022,0.003,42541.0,42540.0,0.65564266]
[1644202465526,0.003,42541.0,42540.0,0.37917084]
[1644202466167,0.003,42541.0,42540.0,0.0971]
[1644202467169,0.003,42541.0,42540.0,0.0471]
[1644202468473,0.003,42541.0,42540.0,0.0481]
[1644202469176,0.003,42541.0,42535.0,0.0183875]
[1644202469377,0.20127799,42536.0,42535.0,0.0183875]
[1644202469574,0.003,42541.0,42532.0,0.47]
[1644202469823,0.003,42541.0,42537.0,0.05]
[1644202469824,0.31135251,42541.0,42537.0,0.05]
[1644202470618,0.24737602,42540.0,42537.0,0.05]
[1644202471016,0.31183309,42541.0,42537.0,0.05]
[1644202471216,0.00348058,42541.0,42537.0,0.05]
[1644202471417,0.00348058,42541.0,42533.0,0.27188533]
[1644202471418,0.00348058,42541.0,42540.0,0.05]
[1644202471619,0.00309623,42541.0,42540.0,0.05]
[1644202473219,0.00309623,42541.0,42540.0,0.0971]
[1644202473867,0.002,42547.0,42540.0,0.0971]
[1644202474166,0.3698,42550.0,42540.0,0.0971]
[1644202474167,0.21264653,42546.0,42541.0,0.05]
[1644202474367,0.00038435,42543.0,42541.0,0.05]
[1644202474569,0.00038435,42543.0,42540.0,0.0471]
[1644202475166,0.20803088,42546.0,42540.0,0.0471]
[1644202475368,0.329022,42545.0,42540.0,0.0471]
[1644202475766,0.329022,42545.0,42533.0,0.167538]
[1644202475968,0.20803088,42546.0,42533.0,0.167538]
[1644202476268,9.623e-05,42541.0,42533.0,0.167538]
[1644202476567,9.623e-05,42541.0,42533.0,0.170538]
[1644202476968,9.623e-05,42541.0,42533.0,0.18854963]
[1644202477171,9.623e-05,42541.0,42533.0,0.18554963]
[1644202477630,0.22201864,42539.0,42533.0,0.18554963]
[1644202477834,9.623e-05,42541.0,42535.0,0.0005034]
[1644202478233,0.27925815,42543.0,42535.0,0.0005034]
[1644202478930,0.27925815,42543.0,42533.0,0.05]
[1644202479132,0.24519655,42542.0,42535.0,0.00061814]
[1644202480136,0.24019655,42542.0,42533.0,0.05]
[1644202480332,0.24019655,42542.0,42535.0,0.00061814]
[1644202480736,9.215e-05,42540.0,42535.0,0.00061814]
[1644202480934,2.61735876,42536.0,42530.0,0.00247286]
[1644202481171,0.329022,42535.0,42530.0,0.00247286]
[1644202481374,0.329022,42535.0,42529.0,0.02098051]
[1644202481570,0.54982925,42535.0,42526.0,0.69925868]
[1644202481769,0.22080725,42535.0,42526.0,0.64925868]
[1644202482169,0.22080725,42535.0,42526.0,0.42]
[1644202482377,0.22580725,42535.0,42526.0,0.475]
[1644202482771,0.329022,42534.0,42528.0,0.00047515]
[1644202483376,0.329022,42532.0,42528.0,0.00047515]
[1644202483573,0.1855995,42531.0,42528.0,0.00047515]
[1644202483775,0.329022,42530.0,42520.0,0.42]
[1644202483972,0.05,42532.0,42528.0,0.0005899]
[1644202484174,0.329022,42531.0,42528.0,0.0005899]
[1644202484378,0.329022,42529.0,42528.0,0.0005899]
[1644202485125,0.27332368,42530.0,42526.0,0.00058991]
[1644202485320,0.69772285,42529.0,42526.0,0.00058991]
[1644202485723,0.74772285,42529.0,42526.0,0.00058991]
[1644202486123,0.74772285,42529.0,42522.0,0.0183917]
[1644202486323,0.71872285,42529.0,42525.0,0.00057165]
[1644202487322,0.71872285,42529.0,42522.0,0.0183917]
[1644202487524,0.71872285,42529.0,42525.0,0.00057165]
[1644202487525,0.76872285,42529.0,42525.0,0.00057165]
[1644202487726,0.74772285,42529.0,42525.0,0.00057165]
[1644202487925,0.84772285,42529.0,42525.0,0.00057165]
[1644202488124,0.96672285,42529.0,42525.0,0.00057165]
[1644202488325,0.0471,42528.0,42525.0,0.00057165]
[1644202488571,0.0471,42528.0,42510.0,0.35390428]
[1644202488572,0.3804024,42516.0,42510.0,0.0813]
[1644202488768,0.9405,42526.0,42525.0,0.00057165]
[1644202488969,1.316622,42526.0,42525.0,0.00057165]
[1644202489169,1.316622,42526.0,42519.0,0.01966649]
[1644202489170,0.85,42525.0,42519.0,0.01966649]
[1644202489370,0.55628137,42520.0,42519.0,0.01966649]
[1644202489569,0.60628137,42520.0,42518.0,0.00228694]
[1644202489771,0.329022,42519.0,42510.0,0.0813]
[1644202489970,0.63096098,42518.0,42510.0,0.0813]
[1644202490173,0.6028,42526.0,42510.0,0.1313]
[1644202490375,0.6028,42526.0,42515.0,0.05]
[1644202490376,0.03,42519.0,42515.0,0.05]
[1644202491270,0.5966154,42525.0,42514.0,0.108803]
[1644202491671,0.5966154,42525.0,42515.0,0.27655855]
[1644202491872,0.5966154,42525.0,42512.0,0.27956115]
[1644202492074,0.6466154,42525.0,42512.0,0.27956115]
[1644202492330,0.3175934,42525.0,42510.0,0.0813]
[1644202492522,0.3845934,42525.0,42510.0,0.0813]
[1644202492722,0.31193101,42520.0,42510.0,0.1313]
[1644202493522,0.31193101,42520.0,42513.0,0.00061607]
[1644202493724,0.329022,42519.0,42513.0,0.00061607]
[1644202494528,0.360022,42519.0,42510.0,0.0813]
[1644202494727,0.329022,42518.0,42514.0,0.00061606]
[1644202495330,0.329022,42516.0,42514.0,0.00061606]
[1644202495730,0.379022,42516.0,42514.0,0.00061606]
[1644202495929,0.379022,42516.0,42510.0,0.0813]
[1644202495930,0.62953689,42516.0,42513.0,0.00061607]
[1644202496375,0.64553689,42516.0,42513.0,0.00061607]
[1644202496575,0.85,42515.0,42510.0,0.07691607]
[1644202496775,0.37988375,42511.0,42510.0,0.07691607]
[1644202496976,0.70890575,42511.0,42510.0,0.07691607]
[1644202497677,0.54120535,42511.0,42510.0,0.07691607]
[1644202497877,0.21218335,42511.0,42510.0,0.07691607]
[1644202498079,0.05,42516.0,42510.0,0.07691607]
[1644202498377,0.015,42511.0,42510.0,0.07691607]
[1644202499277,0.329022,42513.0,42510.0,0.07691607]
[1644202499917,0.329022,42513.0,42510.0,0.07291607]
[1644202500620,0.346022,42513.0,42510.0,0.07291607]
[1644202500818,0.296022,42513.0,42510.0,0.07291607]
[1644202501219,0.279022,42513.0,42510.0,0.07291607]
[1644202502020,0.329022,42513.0,42510.0,0.07291607]
[1644202502217,0.329022,42511.0,42510.0,0.07291607]
[1644202502920,0.329022,42511.0,42510.0,0.04921607]
[1644202502921,0.379022,42511.0,42510.0,0.04921607]
[1644202503576,1.11340532,42510.0,42508.0,0.00061613]
[1644202503780,0.329045,42509.0,42508.0,0.00061613]
[1644202504174,0.329045,42509.0,42501.0,0.05027708]
[1644202504373,0.31783296,42507.0,42506.0,0.00061615]
[1644202504571,0.64687796,42507.0,42506.0,0.00061615]
[1644202504772,0.69687796,42507.0,42506.0,0.00061615]
[1644202505174,0.94325353,42507.0,42506.0,0.00061615]
[1644202505376,1.04325353,42507.0,42501.0,0.00027708]
[1644202505574,0.44674,42505.0,42504.0,0.00061617]
[1644202505773,0.59674,42505.0,42504.0,0.00061617]
[1644202506375,0.329045,42503.0,42498.0,0.00246506]
[1644202506574,0.329045,42501.0,42494.0,0.0055974]
[1644202506774,0.35015175,42501.0,42496.0,0.00227389]
[1644202506974,0.329045,42499.0,42496.0,0.00227389]
[1644202507175,0.329045,42497.0,42496.0,0.00227389]
[1644202507821,0.329045,42497.0,42494.0,0.0055974]
[1644202508018,0.329045,42497.0,42489.0,0.0355974]
[1644202508221,0.0144026,42495.0,42489.0,0.0355974]
[1644202508419,0.071,42497.0,42489.0,0.0355974]
[1644202508628,0.021,42497.0,42493.0,0.0355974]
[1644202509021,0.021,42497.0,42489.0,0.0355974]
[1644202509220,0.021,42497.0,42493.0,0.0355974]
[1644202509432,0.021,42497.0,42489.0,0.0355974]
[1644202509620,0.26172491,42500.0,42489.0,0.0355974]
[1644202509821,0.0144026,42490.0,42489.0,0.0355974]
[1644202510221,0.30640252,42494.0,42489.0,0.0355974]
[1644202510423,0.025,42490.0,42489.0,0.0355974]
[1644202511369,0.0144026,42497.0,42489.0,0.0355974]
[1644202511370,0.0147026,42497.0,42489.0,0.0355974]
[1644202511569,0.0003,42497.0,42490.0,0.31089782]
[1644202511770,0.0003,42497.0,42491.0,0.27359813]
[1644202511972,0.0003,42497.0,42490.0,0.0355974]
[1644202512171,0.0144026,42493.0,42490.0,0.0355974]
[1644202512570,0.28510608,42494.0,42490.0,0.0355974]
[1644202512770,0.0173,42497.0,42493.0,0.0355974]
[1644202512969,0.329045,42496.0,42493.0,0.0305974]
[1644202513171,0.329045,42496.0,42490.0,0.0305974]
[1644202513369,0.0003,42497.0,42490.0,0.0305974]
[1644202513774,0.24977342,42493.0,42490.0,0.0305974]
[1644202513972,0.24977342,42493.0,42487.0,0.01850332]
[1644202513973,0.0194026,42491.0,42487.0,0.01850332]
[1644202514372,0.0194026,42491.0,42485.0,0.03306307]
[1644202514672,0.0194026,42486.0,42485.0,0.00246567]
[1644202515123,0.0194026,42486.0,42484.0,0.84]
[1644202515124,0.3484476,42486.0,42484.0,0.84]
[1644202515326,0.0194026,42486.0,42484.0,0.84]
[1644202515726,0.0194026,42486.0,42483.0,0.01969644]
[1644202515727,0.329045,42484.0,42483.0,0.00061642]
[1644202516124,0.35,42483.0,42481.0,0.02121382]
[1644202516327,0.329045,42482.0,42481.0,0.02121382]
[1644202516529,0.01,42484.0,42481.0,0.02121382]
[1644202516725,0.01,42484.0,42483.0,0.02121382]
[1644202516925,0.01,42484.0,42483.0,0.07140882]
[1644202517324,0.02878618,42489.0,42483.0,0.07140882]
[1644202517526,0.25329434,42486.0,42479.0,0.00129256]
[1644202517724,0.02878618,42488.0,42485.0,0.02121382]
[1644202517924,0.329045,42487.0,42479.0,0.00129256]
[1644202518124,0.02878618,42488.0,42479.0,0.00129256]
[1644202518328,0.02878618,42488.0,42486.0,0.02121382]
[1644202518578,0.340045,42487.0,42486.0,0.02121382]
[1644202518774,0.340045,42487.0,42479.0,0.00129256]
[1644202518775,0.340045,42487.0,42481.0,0.02121382]
[1644202518975,0.340045,42487.0,42481.0,0.0217113]
[1644202519774,0.340045,42487.0,42486.0,0.02121382]
[1644202520073,0.329045,42487.0,42481.0,0.02253985]
[1644202520473,0.341345,42487.0,42481.0,0.04375367]
[1644202520673,0.341345,42487.0,42481.0,0.02253985]
[1644202520874,0.0123,42487.0,42481.0,0.02253985]
[1644202521274,0.0003,42487.0,42482.0,0.00325058]
[1644202521675,0.329045,42486.0,42482.0,0.00325058]
[1644202521875,0.0003,42487.0,42482.0,0.00352547]
[1644202522177,0.25468095,42483.0,42482.0,0.00352547]
[1644202522424,0.25468095,42483.0,42482.0,0.00325058]
[1644202522425,0.58372595,42483.0,42482.0,0.00325058]
[1644202523623,0.90895081,42483.0,42482.0,0.00325058]
[1644202524423,0.90895081,42483.0,42482.0,0.0244644]
[1644202524622,0.93395081,42483.0,42482.0,0.00325058]
[1644202525423,0.90895081,42483.0,42482.0,0.00325058]
[1644202525624,0.90925081,42483.0,42482.0,0.00325058]
[1644202526096,0.55,42481.0,42477.0,0.01281873]
[1644202526296,0.329045,42480.0,42477.0,0.01281873]
[1644202526698,0.329045,42480.0,42479.0,0.02121382]
[1644202526897,0.329045,42480.0,42477.0,0.01281873]
[1644202527097,0.29286542,42479.0,42477.0,0.01281873]
[1644202527298,0.329045,42478.0,42477.0,0.01281873]
[1644202527498,0.6655512,42478.0,42477.0,0.01281873]
[1644202528499,0.6655512,42478.0,42475.0,0.00061375]
[1644202528500,0.85,42477.0,42475.0,0.00061375]
[1644202528702,0.7444864,42476.0,42475.0,0.00061375]
[1644202528900,1.0103864,42476.0,42475.0,3.75e-06]
[1644202529100,0.85,42475.0,42463.0,0.00053984]
[1644202529302,0.02878618,42466.0,42463.0,0.00053984]
[1644202529506,0.02878618,42466.0,42461.0,0.02028569]
[1644202529507,0.85,42464.0,42461.0,0.00052312]